bitfinex/quotes_ETHUSD_20230404
["timestamp","ask_amount","ask_price","bid_price","bid_amount"]
[1680618401652,5.0448,1862.6,1862.5,0.1]
[1680618403360,1.154,1862.6,1862.5,0.31476]
[1680618403653,1.142,1862.6,1862.5,0.1]
[1680618404059,1.142,1862.6,1862.5,0.31476]
[1680618404366,1.142,1862.6,1862.5,2.89029]
[1680618404561,2.19334861,1862.6,1862.5,2.835698]
[1680618404769,2.19334861,1862.6,1862.5,3.265228]
[1680618404770,1.05134861,1862.6,1862.5,3.265228]
[1680618405423,0.009,1862.8,1862.5,3.265228]
[1680618405621,0.012,1862.9,1862.5,3.265228]
[1680618405866,3.212,1863.1,1862.6,2.4725228]
[1680618406163,3.212,1863.1,1862.7,2.36073]
[1680618406533,3.212,1863.1,1862.8,2.36072]
[1680618406730,3.212,1863.1,1862.8,0.64418]
[1680618406937,0.009,1863.1,1862.8,0.21472]
[1680618407142,0.006454,1863.2,1863.0,2.65393]
[1680618407459,0.53602909,1863.9,1863.2,1.50277]
[1680618407715,0.53602909,1863.9,1863.4,1.50255]
[1680618407867,0.53602909,1863.9,1863.5,2.76602218]
[1680618408035,0.53602909,1863.9,1863.6,0.27660222]
[1680618408362,0.53602909,1863.9,1863.7,0.64387]
[1680618408564,0.53602909,1863.9,1863.7,2.78787]
[1680618408763,0.53602909,1863.9,1863.8,2.144]
[1680618409363,0.53602909,1863.9,1863.8,2.35861]
[1680618409555,1.02688298,1863.9,1863.8,2.594471]
[1680618409720,1.02688298,1863.9,1863.8,0.879701]
[1680618409923,1.02688298,1863.9,1863.8,2.35861]
[1680618410323,1.02688298,1863.9,1863.8,2.144]
[1680618410724,1.02688298,1863.9,1863.8,2.35861]
[1680618411021,1.02688298,1863.9,1863.7,2.35861]
[1680618411479,1.02688298,1863.9,1863.8,2.144]
[1680618412238,1.02688298,1863.9,1863.8,2.379862]
[1680618412863,1.02688298,1863.9,1863.8,0.235862]
[1680618413174,2.17588298,1863.9,1863.8,2.144]
[1680618413470,5.60888298,1863.9,1863.6,2.144]
[1680618413765,5.62088298,1863.9,1863.6,2.144]
[1680618413942,6.18982844,1863.9,1863.6,2.144]
[1680618414139,6.18982844,1863.9,1863.5,2.144]
[1680618414726,0.23,1863.8,1863.4,2.144]
[1680618414928,0.239,1863.8,1863.6,2.144]
[1680618415135,4.06098284,1863.8,1863.5,2.35864]
[1680618415374,4.06098284,1863.8,1863.6,2.144]
[1680618415606,0.009,1863.8,1863.6,2.35863]
[1680618415755,0.009,1863.8,1863.6,2.7879]
[1680618415957,0.53602909,1863.9,1863.7,2.144]
[1680618416183,0.53602909,1863.9,1863.8,0.64384]
[1680618416602,0.53602909,1863.9,1863.8,2.78784]
[1680618416786,0.53602909,1863.9,1863.8,3.152472]
[1680618417698,0.53602909,1863.9,1863.8,5.48926418]
[1680618417997,0.53602909,1863.9,1863.8,5.91849418]
[1680618420303,0.03755383,1864.0,1863.8,12.71749418]
[1680618420506,0.03755383,1864.0,1863.9,12.56302218]
[1680618420689,0.03755383,1864.0,1863.9,24.75528752]
[1680618421091,5.383e-05,1864.0,1863.9,24.70528752]
[1680618421289,5.383e-05,1864.0,1863.9,17.90828752]
[1680618423212,5.383e-05,1864.0,1863.9,9.28782534]
[1680618423565,5.383e-05,1864.0,1863.9,9.18782534]
[1680618423818,5.383e-05,1864.0,1863.9,11.95384752]
[1680618426204,5.383e-05,1864.0,1863.9,9.18782534]
[1680618427195,0.11000001,1864.2,1863.9,9.18782534]
[1680618427502,0.11000001,1864.2,1864.0,2.144]
[1680618427708,0.11000001,1864.2,1864.1,0.21458]
[1680618428009,0.11000001,1864.2,1864.0,2.57318]
[1680618428010,0.11000001,1864.2,1864.0,2.35858]
[1680618428206,0.11000001,1864.2,1864.1,2.144]
[1680618428509,0.11000001,1864.2,1864.1,2.35858]
[1680618428673,0.11000001,1864.2,1864.1,2.144]
[1680618428874,0.11000001,1864.2,1864.0,2.35858]
[1680618429068,0.11000001,1864.2,1864.1,2.144]
[1680618429402,0.11900001,1864.2,1864.1,2.35858]
[1680618429716,0.11000001,1864.2,1864.1,2.78774]
[1680618431245,0.11000001,1864.2,1864.1,2.35858]
[1680618431445,0.01000001,1864.2,1864.1,2.35858]
[1680618432439,0.01000001,1864.2,1864.1,2.144]
[1680618433028,0.01000001,1864.2,1864.1,2.35858]
[1680618434206,0.01000001,1864.2,1864.1,2.637356]
[1680618434408,0.01000001,1864.2,1864.1,5.83253818]
[1680618434746,0.02000002,1864.4,1864.1,8.83853818]
[1680618435055,0.02000002,1864.4,1864.3,1.50189]
[1680618435417,0.02000002,1864.4,1864.3,3.64589]
[1680618435611,0.02000002,1864.4,1864.3,3.65189]
[1680618435944,0.02000002,1864.4,1864.3,2.79366]
[1680618437038,0.02000002,1864.4,1864.3,5.55968218]
[1680618437246,0.02000002,1864.4,1864.3,3.5240376]
[1680618437764,0.02000002,1864.4,1864.3,3.0909276]
[1680618437989,0.02000002,1864.4,1864.3,2.78966]
[1680618438137,0.02000002,1864.4,1864.3,2.79366]
[1680618438336,0.02000002,1864.4,1864.3,2.78766]
[1680618439669,0.02000002,1864.4,1864.3,2.35855]
[1680618440281,0.02000002,1864.4,1864.3,2.78766]
[1680618440634,0.02000002,1864.4,1864.3,2.35855]
[1680618441947,5.23901781,1864.4,1864.2,2.15]
[1680618442148,2.51890178,1864.3,1864.2,2.144]
[1680618442351,2.51890178,1864.3,1864.1,2.36457]
[1680618442567,3.24801781,1864.4,1864.1,0.22057]
[1680618442786,3.24501781,1864.4,1864.2,2.144]
[1680618443369,3.24501781,1864.4,1864.2,2.35856]
[1680618443680,3.24501781,1864.4,1864.3,2.144]
[1680618443883,0.04201781,1864.4,1864.3,2.35855]
[1680618444049,0.02000002,1864.4,1864.3,2.35855]
[1680618444257,0.02000002,1864.4,1864.2,2.35855]
[1680618444454,0.02000002,1864.4,1864.2,0.21455]
[1680618444651,0.02000002,1864.4,1864.3,2.144]
[1680618445393,0.02000002,1864.4,1864.3,0.21455]
[1680618446121,0.02000002,1864.4,1864.3,2.35855]
[1680618446882,0.02000002,1864.4,1864.3,2.144]
[1680618447383,0.02000002,1864.4,1864.3,2.35855]
[1680618449800,0.02000002,1864.4,1864.3,2.144]
[1680618450004,0.02000002,1864.4,1864.2,2.35856]
[1680618450435,0.02000002,1864.4,1864.3,2.144]
[1680618451336,0.02000002,1864.4,1864.3,2.35855]
[1680618451632,0.02000002,1864.4,1864.3,0.21455]
[1680618451834,0.02000002,1864.4,1864.2,2.35855]
[1680618452221,0.02000002,1864.4,1864.3,2.144]
[1680618452422,0.02000002,1864.4,1864.3,2.35855]
[1680618452869,0.02000002,1864.4,1864.3,0.21455]
[1680618453030,0.02000002,1864.4,1864.3,2.35855]
[1680618453226,0.02000002,1864.4,1864.3,2.144]
[1680618453825,0.02000002,1864.4,1864.2,2.36056]
[1680618454022,0.02000002,1864.4,1864.3,2.144]
[1680618454224,0.02000002,1864.4,1864.3,2.14055896]
[1680618454435,0.02000002,1864.4,1864.3,2.144]
[1680618454746,0.5683018,1864.4,1864.3,2.144]
[1680618454946,4.0013018,1864.4,1864.3,2.144]
[1680618455494,4.0013018,1864.4,1864.1,2.57515]
[1680618455741,4.0013018,1864.4,1864.2,2.35855]
[1680618456143,4.0013018,1864.4,1864.3,2.144]
[1680618456291,6.0153018,1864.4,1864.3,2.144]
[1680618456495,6.0183018,1864.4,1864.2,2.35856]
[1680618456701,6.0183018,1864.4,1864.3,2.144]
[1680618457803,6.0183018,1864.4,1864.3,2.35855]
[1680618458247,6.0183018,1864.4,1864.3,0.21455]
[1680618458950,0.02300002,1864.4,1864.3,2.78766]
[1680618459256,0.11900001,1864.7,1864.4,6.146]
[1680618459465,0.11300001,1864.7,1864.6,9.79288]
[1680618459665,0.11300001,1864.7,1864.6,12.85390878]
[1680618459666,0.11000001,1864.7,1864.6,12.85390878]
[1680618459820,0.11000001,1864.7,1864.6,16.93411619]
[1680618460208,0.11000001,1864.7,1864.6,16.93611619]
[1680618460423,0.11000001,1864.8,1864.6,16.93611619]
[1680618460624,0.11000001,1865.1,1864.8,0.5]
[1680618460938,0.11000001,1865.1,1865.0,1.50132]
[1680618461135,0.11000001,1865.1,1865.0,4.26734218]
[1680618461439,0.11000001,1865.1,1865.0,6.40934218]
[1680618461766,0.11000001,1865.1,1865.0,6.56034218]
[1680618462170,0.11000001,1865.1,1865.0,3.79432]
[1680618462336,0.11000001,1865.1,1865.0,3.316052]
[1680618464453,0.11000001,1865.1,1865.0,2.293]
[1680618464646,0.11000001,1865.1,1865.0,2.50747]
[1680618465266,0.11000001,1865.1,1865.0,2.93642]
[1680618466181,0.11000001,1865.1,1865.0,5.55144218]
[1680618468852,0.11000001,1865.3,1865.1,0.5]
[1680618469060,1e-08,1865.3,1865.2,14.05118218]
[1680618469352,0.11000001,1865.9,1865.4,5.646]
[1680618469548,0.11000001,1865.9,1865.6,7.647]
[1680618469847,0.11000001,1865.9,1865.7,3.53072218]
[1680618470050,0.11000001,1865.9,1865.7,5.67272218]
[1680618470354,0.11000001,1865.9,1865.8,2.142]
[1680618472020,0.56018001,1865.9,1865.7,2.142]
[1680618472168,0.26006001,1865.9,1865.7,2.142]
[1680618472368,0.11000001,1865.9,1865.4,2.36443]
[1680618472569,0.11000001,1865.9,1865.8,2.142]
[1680618472783,0.26006001,1865.9,1865.5,2.144]
[1680618473070,0.26006001,1865.9,1865.5,2.142]
[1680618473267,3.203,1865.8,1865.5,2.142]
[1680618473613,3.203,1865.8,1865.3,0.002]
[1680618473614,2.014,1865.6,1865.3,0.002]
[1680618473815,0.003,1865.7,1865.6,2.142]
[1680618473985,0.009,1865.8,1865.3,0.002]
[1680618474189,0.15007,1865.8,1865.6,2.142]
[1680618474392,0.26006001,1865.9,1865.4,0.21443]
[1680618474716,0.11000001,1865.9,1865.5,2.142]
[1680618474887,3.46306001,1865.9,1865.5,2.142]
[1680618475088,3.47206001,1865.9,1865.4,2.142]
[1680618475281,4.04147601,1865.9,1865.6,2.142]
[1680618475484,3.4940778,1865.9,1865.4,2.144]
[1680618475717,3.203,1865.7,1865.4,2.142]
[1680618475916,3.35308,1865.7,1865.4,2.142]
[1680618476083,3.35308,1865.7,1865.2,2.15]
[1680618476084,3.56032579,1865.6,1865.2,2.15]
[1680618476288,3.56032579,1865.6,1865.5,2.142]
[1680618476289,3.71041579,1865.6,1865.5,2.142]
[1680618476526,3.71041579,1865.6,1865.3,2.146]
[1680618476818,3.37510779,1865.6,1865.2,2.144]
[1680618477030,3.37510779,1865.6,1865.4,2.142]
[1680618477190,0.23,1865.5,1865.3,2.142]
[1680618477587,0.23,1865.5,1865.2,2.35645]
[1680618477785,0.23,1865.5,1865.4,2.142]
[1680618478022,0.23,1865.5,1865.3,2.142]
[1680618478527,0.23,1865.5,1865.2,2.35645]
[1680618478670,0.23,1865.5,1865.4,2.142]
[1680618478874,0.23,1865.5,1865.3,2.142]
[1680618478875,5.82937436,1865.5,1865.3,2.142]
[1680618479081,3.203,1865.3,1865.1,2.142]
[1680618479309,3.5233,1865.2,1864.9,0.006]
[1680618479626,3.203,1865.2,1864.9,0.21448]
[1680618479920,3.203,1865.2,1864.8,2.57699]
[1680618479921,3.203,1865.2,1865.0,2.142]
[1680618480225,3.203,1865.2,1864.8,2.3645]
[1680618480371,5.68572,1865.2,1864.8,2.146]
[1680618480576,5.68872,1865.2,1864.9,2.142]
[1680618480822,5.5386,1865.2,1864.8,0.002]
[1680618480971,5.5386,1865.2,1864.8,0.21449]
[1680618481181,0.003,1865.2,1864.8,2.35649]
[1680618481377,0.23,1865.3,1865.0,0.21447]
[1680618481605,0.23,1865.3,1865.1,2.142]
[1680618481817,5.229,1865.4,1865.1,2.35646]
[1680618481989,5.229,1865.4,1865.1,2.592106]
[1680618481990,0.012,1865.4,1865.1,2.592106]
[1680618482199,0.376542,1865.7,1865.2,2.142]
[1680618482423,3.576542,1865.7,1865.2,2.142]
[1680618482588,4.3645102,1865.7,1865.2,2.142]
[1680618482978,4.6646602,1865.7,1865.2,2.142]
[1680618483343,4.3645102,1865.7,1865.2,2.142]
[1680618484025,3.426462,1865.7,1865.2,2.35645]
[1680618484394,3.426462,1865.7,1865.3,2.142]
[1680618485188,3.426462,1865.7,1865.3,2.35644]
[1680618485488,3.576532,1865.7,1865.2,2.142]
[1680618485693,0.02201779,1865.6,1865.2,2.4014096]
[1680618486236,2.16609779,1865.6,1865.3,2.142]
[1680618486392,2.17509779,1865.6,1865.3,2.142]
[1680618486749,2.17509779,1865.6,1865.2,2.142]
[1680618488132,2.02501779,1865.6,1865.2,2.142]
[1680618488658,2.02501779,1865.6,1865.2,2.4012106]
[1680618489145,2.02501779,1865.6,1865.3,2.142]
[1680618490050,0.15007,1865.7,1865.3,2.142]
[1680618490440,5.72948811,1865.9,1865.3,2.142]
[1680618490646,5.57942811,1865.9,1865.3,2.61860606]
[1680618490961,5.42936811,1865.9,1865.4,2.142]
[1680618491111,0.22536811,1865.9,1865.5,8.41202218]
[1680618491312,0.08646201,1865.9,1865.6,10.98803222]
[1680618491560,0.08646201,1865.9,1865.7,2.76602218]
[1680618491860,0.08646201,1865.9,1865.8,2.78515]
[1680618492155,0.08646201,1865.9,1865.8,5.55117218]
[1680618492453,0.08646201,1865.9,1865.8,6.6776894]
[1680618492619,0.08646201,1865.9,1865.8,9.6736894]
[1680618492818,0.08646201,1865.9,1865.8,9.6776894]
[1680618493218,0.08646201,1865.9,1865.8,15.3236894]
[1680618494009,0.08646201,1865.9,1865.8,3.48289722]
[1680618494228,0.08646201,1865.9,1865.8,2.148]
[1680618494428,0.08646201,1865.9,1865.8,2.36238]
[1680618494637,7.981e-05,1866.3,1865.8,5.12840218]
[1680618494845,0.012,1866.6,1866.1,0.21434]
[1680618495077,0.13083313,1866.7,1866.2,0.643]
[1680618495279,0.11600001,1866.9,1866.4,0.64291]
[1680618495580,0.11600001,1866.9,1866.5,2.142]
[1680618495581,0.11000001,1866.9,1866.5,2.142]
[1680618495752,0.32240001,1866.9,1866.5,2.35629]
[1680618495951,0.33140001,1866.9,1866.5,2.35629]
[1680618496265,0.32240001,1866.9,1866.6,0.142]
[1680618496585,0.4550033,1866.9,1866.6,2.142]
[1680618496942,0.4550033,1866.9,1866.5,2.142]
[1680618496943,2.014,1866.8,1866.5,2.142]
[1680618497179,2.014,1866.8,1866.3,0.03001591]
[1680618497180,2.59619833,1866.8,1866.4,0.21431]
[1680618497484,2.59619833,1866.8,1866.6,2.142]
[1680618497791,2.59619833,1866.8,1866.5,2.142]
[1680618498086,2.59619833,1866.8,1866.5,0.64289]
[1680618498289,5.6780033,1866.9,1866.6,2.142]
[1680618498431,5.6780033,1866.9,1866.6,2.35628]
[1680618498865,5.6780033,1866.9,1866.6,2.78486]
[1680618499067,0.2546033,1866.9,1866.6,6.40805218]
[1680618499335,0.11000001,1866.9,1866.8,0.21427]
[1680618499884,0.11000001,1866.9,1866.7,2.35627]
[1680618500196,0.11000001,1866.9,1866.8,4.90602218]
[1680618500497,0.11000001,1866.9,1866.8,6.40591218]
[1680618502255,0.11000001,1866.9,1866.8,3.63989]
[1680618504091,0.11000001,1866.9,1866.8,6.4279222]
[1680618505242,0.11000001,1866.9,1866.8,2.78281]
[1680618506288,0.11000001,1866.9,1866.8,2.14]
[1680618506865,0.11000001,1866.9,1866.7,2.14]
[1680618507096,0.11000001,1866.9,1866.7,5.67891118]
[1680618507610,0.11000001,1866.9,1866.8,2.14]
[1680618508562,0.11000001,1866.9,1866.8,4.90602218]
[1680618509072,0.11000001,1866.9,1866.8,2.14]
[1680618511430,0.11000001,1866.9,1866.7,0.02201119]
[1680618511576,0.25998001,1866.9,1866.8,2.14]
[1680618511784,0.25998001,1866.9,1866.7,0.002]
[1680618511991,2.014,1866.8,1866.5,0.002]
[1680618512224,1.996,1866.6,1866.4,2.142]
[1680618512525,0.2014,1866.7,1866.5,2.142]
[1680618512740,0.27198001,1866.9,1866.5,2.3562]
[1680618512881,0.27198001,1866.9,1866.4,0.21431]
[1680618512882,0.11000001,1866.9,1866.4,0.21431]
[1680618513086,0.11000001,1866.9,1866.6,2.142]
[1680618513289,0.11000001,1866.9,1866.6,0.23563]
[1680618513486,0.11000001,1866.9,1866.7,2.14]
[1680618513729,0.11000001,1866.9,1866.7,2.142]
[1680618514090,0.11000001,1866.9,1866.5,2.3563]
[1680618514344,0.11000001,1866.9,1866.5,5.12232218]
[1680618514531,0.11000001,1866.9,1866.6,2.142]
[1680618514691,0.11000001,1866.9,1866.7,0.2142]
[1680618514897,0.11000001,1866.9,1866.6,2.142]
[1680618518197,0.25998001,1866.9,1866.6,2.142]
[1680618518545,3.76294001,1866.9,1866.5,2.142]
[1680618518846,3.76294001,1866.9,1866.4,2.142]
[1680618518847,0.376294,1866.8,1866.4,2.142]
[1680618519003,0.526284,1866.8,1866.3,2.142]
[1680618519361,0.526284,1866.8,1866.4,2.142]
[1680618519841,3.729284,1866.8,1866.3,2.142]
[1680618520019,3.729284,1866.8,1866.2,2.963078]
[1680618520215,3.729284,1866.8,1866.4,2.142]
[1680618520548,3.729284,1866.8,1866.2,2.35833]
[1680618523130,5.7325684,1866.7,1866.2,2.148]
[1680618523329,5.5825784,1866.7,1866.2,2.148]
[1680618523598,5.5825784,1866.7,1866.2,2.36233]
[1680618523802,5.5825784,1866.7,1866.3,2.142]
[1680618524044,5.5825784,1866.7,1866.3,2.148]
[1680618524541,5.7325684,1866.7,1866.3,2.148]
[1680618525776,5.5825784,1866.7,1866.3,2.148]
[1680618526233,5.5825784,1866.7,1866.3,2.36232]
[1680618526430,5.5825784,1866.7,1866.3,2.148]
[1680618526631,5.5825784,1866.7,1866.4,2.142]
[1680618527006,5.5825784,1866.7,1866.3,0.22032]
[1680618527203,5.5825784,1866.7,1866.3,2.35832]
[1680618527408,5.5825784,1866.7,1866.4,2.142]
[1680618527836,5.5825784,1866.7,1866.3,0.22032]
[1680618528025,5.5825784,1866.7,1866.4,2.142]
[1680618528456,5.5825784,1866.7,1866.3,2.148]
[1680618529853,5.5825784,1866.7,1866.3,2.36232]
[1680618529854,2.011,1866.7,1866.3,2.36232]
[1680618530023,2.008,1866.7,1866.3,2.36232]
[1680618530228,5.45412336,1866.9,1866.4,2.142]
[1680618530551,2.25112336,1866.9,1866.5,0.21429]
[1680618530759,2.25112336,1866.9,1866.4,2.3623]
[1680618530760,2.24812336,1866.9,1866.4,2.3623]
[1680618530913,2.24812336,1866.9,1866.5,2.142]
[1680618531111,2.24812336,1866.9,1866.5,2.3563]
[1680618531344,2.24812336,1866.9,1866.5,2.142]
[1680618531910,2.39810336,1866.9,1866.5,2.142]
[1680618532114,0.39710336,1866.9,1866.5,2.142]
[1680618532724,0.24712336,1866.9,1866.5,2.142]
[1680618532932,0.24712336,1866.9,1866.5,2.43167742]
[1680618533958,0.24712336,1866.9,1866.6,2.142]
[1680618534824,0.39710336,1866.9,1866.5,2.148]
[1680618535021,2.014,1866.8,1866.6,2.142]
[1680618535254,2.75538634,1866.8,1866.5,2.148]
[1680618535634,2.75538634,1866.8,1866.5,2.142]
[1680618535959,2.75538634,1866.8,1866.3,2.17001591]
[1680618536522,2.60540634,1866.8,1866.3,2.38433591]
[1680618536918,2.75538634,1866.8,1866.4,2.142]
[1680618537115,1.149,1866.7,1866.4,2.142]
[1680618538031,1.149,1866.7,1866.4,2.35631]
[1680618538231,1.149,1866.7,1866.4,2.142]
[1680618538437,1.149,1866.7,1866.5,2.142]
[1680618538733,1.149,1866.7,1866.4,2.144]
[1680618538936,1.149,1866.7,1866.6,2.142]
[1680618539257,1.149,1866.7,1866.5,2.142]
[1680618539466,1.149,1866.7,1866.5,2.144]
[1680618539670,1.149,1866.7,1866.5,0.002]
[1680618539868,1.149,1866.7,1866.6,2.142]
[1680618540171,1.149,1866.7,1866.5,2.142]
[1680618540969,1.149,1866.7,1866.5,2.3563]
[1680618541279,4.60212336,1866.9,1866.6,2.142]
[1680618541567,4.9453357,1866.9,1866.6,2.142]
[1680618541775,1.39612336,1866.9,1866.6,2.142]
[1680618541962,0.11000001,1866.9,1866.6,5.54889218]
[1680618542156,0.11000001,1866.9,1866.7,2.76602218]
[1680618542341,0.11000001,1866.9,1866.8,1.49989]
[1680618542529,0.11000001,1866.9,1866.8,11.93096042]
[1680618543345,0.11000001,1866.9,1866.8,11.93696042]
[1680618544846,0.11000001,1866.9,1866.8,17.58296042]
[1680618545046,0.10638422,1866.9,1866.8,17.58096042]
[1680618545372,0.10638422,1866.9,1866.8,17.59897044]
[1680618546068,0.10638422,1866.9,1866.8,10.45308044]
[1680618546269,0.10638422,1866.9,1866.8,10.66735044]
[1680618546731,0.10638422,1866.9,1866.8,11.09589044]
[1680618546928,0.10638422,1866.9,1866.8,10.66735044]
[1680618550284,0.10638422,1866.9,1866.8,7.68705826]
[1680618550689,0.10638422,1866.9,1866.8,7.90132826]
[1680618550985,0.10638422,1866.9,1866.8,11.09589044]
[1680618551134,0.10638422,1866.9,1866.8,14.09589044]
[1680618551335,0.10638422,1866.9,1866.8,14.65570145]
[1680618551542,0.10638422,1866.9,1866.8,14.09589044]
[1680618551769,0.10638422,1866.9,1866.8,20.30170145]
[1680618551932,0.10638422,1866.9,1866.8,21.45070145]
[1680618553363,0.14454919,1867.6,1867.1,1.5]
[1680618553567,0.214232,1867.9,1867.4,5.646]
[1680618553783,0.214232,1867.9,1867.5,2.76602218]
[1680618554083,0.1499,1867.8,1867.5,2.14]
[1680618554295,0.1499,1867.8,1867.4,2.14]
[1680618554520,0.1499,1867.8,1867.5,2.14]
[1680618554521,1.149,1867.7,1867.5,2.14]
[1680618554802,1.149,1867.7,1867.3,0.002]
[1680618554803,1.30791,1867.7,1867.3,0.002]
[1680618554945,1.149,1867.5,1867.2,2.14]
[1680618555147,1.149,1867.5,1867.1,2.35423]
[1680618555344,1.149,1867.5,1867.2,2.14]
[1680618555655,1.149,1867.5,1867.2,2.35421]
[1680618555958,0.009,1867.6,1867.3,4.90602218]
[1680618556177,1.152,1867.8,1867.3,5.12023218]
[1680618556178,0.009,1867.7,1867.3,5.12023218]
[1680618556349,0.009,1867.7,1867.4,2.14]
[1680618557489,0.1158,1867.7,1867.4,2.14]
[1680618558205,0.1158,1867.7,1867.4,2.3542]
[1680618558671,0.1158,1867.7,1867.5,2.14]
[1680618558872,0.1248,1867.7,1867.5,2.14]
[1680618559888,0.1248,1867.7,1867.5,2.35418]
[1680618560084,0.1248,1867.7,1867.5,2.14]
[1680618560290,0.1248,1867.7,1867.4,2.35419]
[1680618560474,1.158,1867.8,1867.5,2.35418]
[1680618560791,1.158,1867.8,1867.5,0.21418]
[1680618561358,1.158,1867.8,1867.5,2.35418]
[1680618561558,2.68786412,1867.8,1867.5,2.35418]
[1680618562299,1.53886412,1867.8,1867.5,2.35418]
[1680618562451,1.53886412,1867.8,1867.5,2.14]
[1680618562648,1.53886412,1867.8,1867.4,0.21419]
[1680618562891,0.15388641,1867.7,1867.4,2.35419]
[1680618563091,0.16288641,1867.7,1867.4,2.35419]
[1680618563278,0.16288641,1867.7,1867.5,2.14]
[1680618563597,0.16288641,1867.7,1867.4,2.35419]
[1680618563955,1.139,1867.6,1867.4,2.14]
[1680618564161,1.26918864,1867.6,1867.4,2.14]
[1680618564359,1.27818864,1867.6,1867.3,0.21421]
[1680618564575,1.26918864,1867.6,1867.3,2.14]
[1680618564891,1.27818864,1867.6,1867.2,2.56844]
[1680618565094,1.27818864,1867.6,1867.3,2.14]
[1680618565865,1.149,1867.4,1867.2,2.14]
[1680618566206,1.158,1867.4,1867.0,2.142]
[1680618566401,1.63018189,1867.4,1867.0,2.35423]
[1680618566762,1.63018189,1867.4,1867.1,2.14]
[1680618568701,0.54853844,1867.3,1867.1,2.14]
[1680618568901,5.731,1867.2,1866.9,0.002]
[1680618569119,5.731,1867.2,1866.6,2.142]
[1680618569120,4.352,1867.0,1866.6,2.142]
[1680618569263,4.352,1867.0,1866.5,0.002]
[1680618569264,1.149,1866.9,1866.5,2.36229]
[1680618569461,1.149,1866.9,1866.6,2.142]
[1680618569762,1.600397,1866.9,1866.5,2.142]
[1680618569995,1.149,1866.7,1866.5,2.142]
[1680618570295,1.149,1866.7,1866.4,0.002]
[1680618570296,1.149,1866.7,1866.3,2.35632]
[1680618570495,1.149,1866.7,1866.3,2.35631]
[1680618570717,1.149,1866.7,1866.4,2.142]
[1680618571195,1.149,1866.7,1866.3,2.35632]
[1680618571561,1.149,1866.7,1866.4,2.142]
[1680618571761,1.149,1866.7,1866.3,2.142]
[1680618572101,1.149,1866.5,1866.3,2.142]
[1680618572395,1.149,1866.5,1866.3,2.35632]
[1680618572596,1.149,1866.5,1866.3,2.142]
[1680618572811,1.149,1866.5,1866.2,2.35632]
[1680618573004,1.149,1866.5,1866.3,2.142]
[1680618573663,1.1455815,1866.5,1866.3,2.35632]
[1680618574461,14.628099,1866.7,1866.3,2.35632]
[1680618575074,4.485799,1866.7,1866.3,2.142]
[1680618575276,4.482799,1866.7,1866.3,2.35632]
[1680618575776,4.352,1866.7,1866.3,2.35632]
[1680618577824,4.352,1866.7,1866.3,2.142]
[1680618579391,4.352,1866.7,1866.3,2.35632]
[1680618579590,4.352,1866.7,1866.3,2.142]
[1680618580201,4.352,1866.7,1866.3,2.35632]
[1680618581839,4.352,1866.7,1866.3,2.142]
[1680618581996,4.352,1866.7,1866.3,2.35632]
[1680618582384,4.84226693,1866.7,1866.3,2.142]
[1680618583394,4.84226693,1866.7,1866.3,2.35632]
[1680618583796,4.84226693,1866.7,1866.3,0.21432]
[1680618584529,0.39927309,1866.6,1866.3,0.21432]
[1680618584706,0.39927309,1866.6,1866.2,2.35632]
[1680618585032,0.39927309,1866.6,1866.3,2.142]
[1680618585228,0.39927309,1866.6,1866.3,2.35632]
[1680618585533,0.39927309,1866.6,1866.3,2.142]
[1680618588793,1.149,1866.4,1866.2,2.144]
[1680618589039,1.29902,1866.4,1866.1,2.148]
[1680618589248,1.41392,1866.4,1866.0,2.148]
[1680618589548,1.2639,1866.4,1866.0,2.148]
[1680618590260,3.32939,1866.3,1866.0,0.006]
[1680618590418,1.149,1866.2,1866.0,0.002]
[1680618590618,1.149,1866.2,1866.0,2.142]
[1680618590808,1.149,1866.2,1865.9,2.46236]
[1680618591015,1.149,1866.2,1866.0,2.35636]
[1680618591229,0.003,1866.3,1866.0,2.35636]
[1680618591429,10.5488,1866.5,1866.0,0.64308]
[1680618591430,10.5518,1866.5,1866.0,0.64308]
[1680618591606,10.5518,1866.5,1866.0,2.78508]
[1680618591817,10.5518,1866.5,1866.0,3.21626437]
[1680618592029,10.5518,1866.5,1866.1,2.142]
[1680618592217,0.012,1866.5,1866.2,0.21433]
[1680618592535,4.364,1866.7,1866.3,2.142]
[1680618592706,4.361,1866.7,1866.3,2.142]
[1680618593303,4.361,1866.7,1866.3,2.35632]
[1680618593503,4.352,1866.7,1866.2,2.35632]
[1680618593704,4.352,1866.7,1866.3,2.142]
[1680618594301,3.203,1866.7,1866.3,2.78497]
[1680618594615,3.203,1866.7,1866.3,2.35632]
[1680618595330,3.203,1866.7,1866.3,2.142]
[1680618595534,3.203,1866.7,1866.3,2.35632]
[1680618595957,5.77792687,1866.7,1866.3,2.142]
[1680618596267,5.93091687,1866.7,1866.3,2.142]
[1680618596632,5.93091687,1866.7,1866.2,2.142]
[1680618596961,5.78092687,1866.7,1866.2,2.35633]
[1680618597364,5.78092687,1866.7,1866.3,2.142]
[1680618597536,5.93092687,1866.7,1866.3,2.142]
[1680618597742,5.93092687,1866.7,1866.2,2.142]
[1680618598282,5.92823487,1866.7,1866.2,2.148]
[1680618598582,5.77823487,1866.7,1866.2,2.148]
[1680618598732,5.77823487,1866.7,1866.2,2.36233]
[1680618598926,4.352308,1866.7,1866.3,2.142]
[1680618599123,4.349308,1866.7,1866.3,2.36232]
[1680618599465,0.47510495,1866.6,1866.3,2.36232]
[1680618600177,0.47510495,1866.6,1866.4,4.93003691]